Cogmind - Beta 15 @@@ ROGUE MODE // 2025.05.26 @ 02:52:08 Player: Geo Result: Self-destructed Performance ------------- Evolutions (0) 0 Regions Visited (3) 600 Robots Destroyed (2) 10 Value Destroyed (80) 80 Prototype IDs (0) 0 Alien Tech Used (0) 0 Bonus (241) 241 TOTAL SCORE: 931 Bonus ------- Registered with UFD 300 Friendly Fire -59 Cogmind --------- Core Integrity 230/250 Matter 200/300 Energy 100/100 System Corruption 0% Temperature Cool (0) Movement Treading (165) Location -7/Scraptown Parts ------- > --- POWER (1) -------- (None) > --- PROPULSION (2) --- Spiked Treads Armored Treads > --- UTILITY (2) ------ Scrapoid Pod > --- WEAPON (2) ------- Subdweller Beam Cannon Mining Claw > --- INVENTORY (5) ---- Improved Light Armor Plating Subdweller Laser Gauss Rifle Peak State ------------ > --- POWER ------------ (None) > --- PROPULSION ------- Spiked Treads Armored Treads > --- UTILITY ---------- Scrapoid Pod > --- WEAPON ----------- Subdweller Beam Cannon > --- INVENTORY -------- Improved Light Armor Plating Scrap Shield Subdweller Laser Gauss Rifle [Rating: 20] Favorites ----------- Power Light Ion Engine Engine Light Ion Engine Propulsion Spiked Treads Treads Spiked Treads Leg Aluminum Leg Wheel Subdweller Monowheel Utility Small Storage Unit Device Makeshift ECM Suite Storage Small Storage Unit Weapon Subdweller Beam Cannon Energy Gun Subdweller Laser Energy Cannon Subdweller Beam Cannon Ballistic Gun Light Assault Rifle Slashing Weapon Mining Claw Build | -11 -10 -10 -7 ------- Run | Yrd Mat Sub Scr Slots Evolved . | . . . . Power . | . . . . Propulsion . | . . . . Utility . | . . . . Weapon . | . . . . Parts Attached 10 | 2 . 4 4 Power . | . . . . Engine . | . . . . Core . | . . . . Reactor . | . . . . Propulsion 5 | 2 . 2 1 Treads 4 | 2 . 1 1 Leg . | . . . . Wheel 1 | . . 1 . Hover . | . . . . Flight . | . . . . Utility 2 | . . . 2 Device 2 | . . . 2 Storage . | . . . . Processor . | . . . . Hackware . | . . . . Protection . | . . . . Artifact . | . . . . Weapon 3 | . . 2 1 Energy Gun 1 | . . 1 . Energy Cannon 1 | . . 1 . Ballistic Gun . | . . . . Ballistic Cannon . | . . . . Launcher . | . . . . Special Weapon . | . . . . Impact Weapon . | . . . . Slashing Weapon 1 | . . . 1 Piercing Weapon . | . . . . Special Melee Weapon . | . . . . Unidentified Prototypes . | . . . . Parts Lost 2 | . . 2 . Power 1 | . . 1 . Propulsion . | . . . . Utility . | . . . . Weapon 1 | . . 1 . Highest Loss Streak 2 | . . 2 . To Critical Strikes . | . . . . Average Backups 4 | 6 2 4 5 Power . | 1 1 . . Propulsion 1 | 4 . . 1 Utility 1 | . . . 1 Weapon 2 | 1 1 2 2 Tool/Special . | . . . . Unused Backups 15 | . 4 3 8 Power 3 | . 1 2 . Propulsion 3 | . . . 3 Utility 2 | . 1 . 1 Weapon 7 | . 2 1 4 Tool/Special . | . . . . Average Slot Usage (%) 68 | . 85 73 67 Engine 1 | . 14 3 . Treads 26 | . 28 20 28 Wheel 1 | . . 7 . Device 11 | . . . 13 Storage 9 | . 14 14 7 Energy Gun 3 | . . 8 2 Energy Cannon 11 | . . 1 14 Ballistic Gun 3 | . 28 16 . Peak Build Rating 20 | 6 6 9 20 Average Rating 14 | 5 6 7 16 On Entrance 6 | 6 6 6 9 Naked Turns . | . . . . Heaviest Build 25 | 11 11 17 25 Greatest Support 40 | 40 40 40 40 Greatest Overweight (x) . | . . . . Average Overweight (x) . | . . . . Largest Inventory Capacity 8 | 8 8 8 8 Average Capacity 6 | 8 8 8 6 Most Carried 8 | 6 2 8 8 Average Carried 5 | 4 2 6 6 Final Capacity 8 | 8 8 8 5 Final Carried 8 | 2 2 8 3 Class Distribution -------------------- 54% | Mutant 45% | Derelict-Mutant Dominant Class ---------------- Mutant | -10/Materials Mutant | -10/Subcaves Derelict-Mutant | -7/Scraptown Resources | -11 -10 -10 -7 ----------- Run | Yrd Mat Sub Scr Matter Collected 793 | 169 . 134 490 Remotely . | . . . . Salvage Created 134 | . . 64 70 Parts 8 | . . 5 3 Haulers Intercepted . | . . . . Recyclers Shooed . | . . . . Parts Field Recycled . | . . . . Retrieved Matter . | . . . . Parts Self-Destructed 6 | . . 6 . Prevented . | . . . . Kills | -11 -10 -10 -7 ------- Run | Yrd Mat Sub Scr Combat Hostiles Destroyed 2 | . . 2 . Guns 2 | . . 2 . Classes Destroyed 1 | . . 1 . Subdweller 2 | . . 2 . Best Kill Streak 1 | . . 1 . Combat Bots Only 1 | . . 1 . Max Kills in Single Turn 1 | . . 1 . Gunslinging . | . . . . Exploded . | . . . . Melee . | . . . . Uniques/NPCs Destroyed . | . . . . Combat | -11 -10 -10 -7 -------- Run | Yrd Mat Sub Scr Hostile Shots Fired 30 | . . 30 . Missed 7 | . . 7 . Hits 23 | . . 23 . Projectile 23 | . . 23 . Damage Taken 471 | . . 471 . Core 20 | . . 20 . Absorbed by Shields . | . . . . Core Remaining (%) 100 | 100 . . . Volleys Fired 19 | . . 19 . Largest 2 | . . 2 . Hottest 60 | . . 60 . Shots Fired 32 | . . 32 . Gun 32 | . . 32 . Cannon . | . . . . Launcher . | . . . . Special . | . . . . Kinetic 27 | . . 27 . Thermal 5 | . . 5 . Explosive . | . . . . Electromagnetic . | . . . . Robot Hit Streak 22 | . . 22 . Robot Miss Streak 1 | . . 1 . Penetration Max . | . . . . Secondary Targets . | . . . . Shots Hit Robots 26 | . . 25 1 Core Hits 8 | . . 7 1 Critical Kills . | . . . . Critical Parts Destroyed . | . . . . Critical Strikes . | . . . . Melee Attacks 1 | . . . 1 Impact . | . . . . Slashing 1 | . . . 1 Piercing . | . . . . Sneak Attacks . | . . . . Combat Hostiles . | . . . . Follow-up Attacks . | . . . . Damage Inflicted 312 | . . 268 44 Guns 268 | . . 268 . Cannons . | . . . . Explosions . | . . . . Melee 44 | . . . 44 Ramming . | . . . . Kinetic 268 | . . 268 . Thermal . | . . . . Explosive . | . . . . Electromagnetic . | . . . . Impact . | . . . . Slashing 44 | . . . 44 Piercing . | . . . . Highest Corruption . | . . . . Average Corruption . | . . . . Corruption Purged . | . . . . Corruption Blocked . | . . . . Overload Shots . | . . . . Overflow Damage . | . . . . Projectiles . | . . . . Explosions . | . . . . Melee . | . . . . Knockbacks . | . . . . Impact . | . . . . Kinetic . | . . . . Secondary . | . . . . Self-Inflicted Damage . | . . . . Shots . | . . . . Rammed . | . . . . Targets Rammed . | . . . . Kicked . | . . . . Crushed . | . . . . Highest Temperature . | . . . . Average Temperature . | . . . . Received Heat Transfer 138 | . . 138 . Siege Activations . | . . . . Martial Activations . | . . . . Shielding Activations . | . . . . Robots Disrupted . | . . . . Combat Hostiles . | . . . . Robots Corrupted . | . . . . Combat Hostiles . | . . . . Parts Fried . | . . . . Impact Corruptions . | . . . . Robots Melted . | . . . . Combat Hostiles . | . . . . Parts Melted . | . . . . Heat Transferred . | . . . . Parts Sabotaged . | . . . . Parts Stolen . | . . . . Parts Stripped . | . . . . Power Chain Reactions . | . . . . Alert | -11 -10 -10 -7 ------- Run | Yrd Mat Sub Scr Maximum Alert Level . | . . . . Low Security (%) 100 | 100 100 . . Level 1 . | . . . . Level 2 . | . . . . Level 3 . | . . . . Level 4 . | . . . . Level 5 . | . . . . High Security . | . . . . Max Security . | . . . . Peak Influence . | . . . . Initial . | . . . . Average . | . . . . Influence Increases . | . . . . Influence Decreases . | . . . . Squads Dispatched . | . . . . Investigation . | . . . . Extermination . | . . . . Reinforcement . | . . . . Assault . | . . . . Garrison . | . . . . Intercept . | . . . . Searches Triggered . | . . . . Construction Impeded . | . . . . Haulers Reinforced . | . . . . Active Scanning Responses . | . . . . Cargo Convoy Interrupts . | . . . . Stealth | -11 -10 -10 -7 --------- Run | Yrd Mat Sub Scr Distress Signals . | . . . . Communications Jammed . | . . . . Distress Signals . | . . . . Times Spotted 2 | . . 2 . Peak Tracking Total 2 | . . 2 . Tactical Retreats . | . . . . Traps | -11 -10 -10 -7 ------- Run | Yrd Mat Sub Scr Traps Triggered . | . . . . Indirectly . | . . . . Trap Hack Attempts . | . . . . Triggered . | . . . . Disarmed . | . . . . Reprogrammed . | . . . . Reused . | . . . . Traps Extracted . | . . . . Installed . | . . . . Triggered . | . . . . Machines | -11 -10 -10 -7 ---------- Run | Yrd Mat Sub Scr Machines Disabled . | . . . . Max in Single Turn . | . . . . Machines Repaired . | . . . . Machines Dismantled . | . . . . Machines Sabotaged . | . . . . Overloaded Fab Kills . | . . . . Hacking | -11 -10 -10 -7 --------- Run | Yrd Mat Sub Scr Machines Accessed 2 | . . . 2 Terminals . | . . . . Fabricators . | . . . . Repair Stations . | . . . . Recycling Units . | . . . . Scanalyzers . | . . . . Garrison Access . | . . . . Total Hacks 8 | . . . 8 Successful 8 | . . . 8 Failed . | . . . . Catastrophic . | . . . . Database Lockouts . | . . . . Manual . | . . . . Terminals . | . . . . Fabricators . | . . . . Repair Stations . | . . . . Recycling Units . | . . . . Scanalyzers . | . . . . Garrison Access . | . . . . Terminal Hacks 8 | . . . 8 Record 8 | . . . 8 Fabricator Hacks . | . . . . Repair Station Hacks . | . . . . Recycling Unit Hacks . | . . . . Scanalyzer . | . . . . Garrison Access Hacks . | . . . . Unauthorized Hacks . | . . . . Terminals . | . . . . Fabricators . | . . . . Repair Stations . | . . . . Recycling Units . | . . . . Scanalyzers . | . . . . Garrison Access . | . . . . Data Cores Recovered . | . . . . Used . | . . . . Hacking Detections . | . . . . Full Trace Events . | . . . . Feedback Events . | . . . . Feedback Blocked . | . . . . Robot Schematics Acquired . | . . . . Robots Built . | . . . . Authchips . | . . . . Time . | . . . . Total Robot Build Rating . | . . . . Part Schematics Acquired . | . . . . Parts Built . | . . . . Authchips . | . . . . Time . | . . . . Total Part Build Rating . | . . . . Parts Repaired . | . . . . Time . | . . . . Parts Recycled . | . . . . Recycled Matter . | . . . . Retrieved Matter . | . . . . Retrieved Components . | . . . . Parts Scanalyzed . | . . . . Part Schematics Acquired . | . . . . Parts Damaged . | . . . . Bothacking | -11 -10 -10 -7 ------------ Run | Yrd Mat Sub Scr Used RIF Installer . | . . . . Robots Hacked . | . . . . Non-combat . | . . . . Combat . | . . . . Robot Hacks Applied . | . . . . Relay Couplers Released . | . . . . Fabnet Peak Effective % . | . . . . Robots Rewired . | . . . . Allies Hacked . | . . . . Hacks Repelled . | . . . . Allies | -11 -10 -10 -7 -------- Run | Yrd Mat Sub Scr Total Allies . | . . . . Largest Group . | . . . . Highest-Rated Group . | . . . . Highest-Rated Ally . | . . . . Total Orders . | . . . . Ally Attacks . | . . . . Total Damage . | . . . . Kills . | . . . . Allies Corrupted . | . . . . Allies Melted . | . . . . Intel | -11 -10 -10 -7 ------- Run | Yrd Mat Sub Scr Active Infowar (turns) 15 | . . . 15 ECM 15 | . . . 15 Robot Analysis Total . | . . . . Derelict Logs Recovered 5 | . . 1 4 Drone Launches . | . . . . Drone Recoveries . | . . . . Exploration | -11 -10 -10 -7 ------------- Run | Yrd Mat Sub Scr Turns Passed 3450 | 5 112 530 2803 Spaces Moved 1912 | 1 12 284 1615 Core . | . . . . Treads 1912 | 1 12 284 1615 Legs . | . . . . Wheels . | . . . . Hover . | . . . . Flight . | . . . . Fastest Speed 160 | 160 160 160 160 Average Speed 164 | 160 160 160 164 Slowest Speed 165 | 160 160 160 165 Overloaded Moves . | . . . . Propulsion Burnouts . | . . . . Robots Hopped . | . . . . Potential Cave-ins . | . . . . Cave-ins Triggered . | . . . . Exploration Rate (%) 28 | 2 4 19 88 Regions Visited 3 Branch Regions 2 Pre-discovered Areas 2 | . . . 2 Known Exits Taken . | . . . . Unknown Exits Taken 3 | 1 1 1 . Scrap Searched 9 | . . 3 6 Spaces Dug . | . . . . Terrain Destroyed . | . . . . Melee . | . . . . Projectile . | . . . . AOE . | . . . . Terrain Rammed . | . . . . Walls Destroyed . | . . . . Machines Disabled . | . . . . Actions | -11 -10 -10 -7 --------- Run | Yrd Mat Sub Scr Total 2204 | 6 105 337 1756 Wait 224 | . 94 9 121 Move 1909 | . 11 283 1615 Hop . | . . . . Pick Up 17 | . . 12 5 Fast Attach 5 | . . 2 3 Attach 4 | 2 . 2 . Detach . | . . . . Swap 2 | . . 1 1 Drop 23 | 4 . 9 10 Fire 19 | . . 19 . Melee 1 | . . . 1 Ram . | . . . . Kick . | . . . . Crush . | . . . . Escape Stasis . | . . . . Rewire . | . . . . Trap . | . . . . Miscellaneous . | . . . . Route ------- -11/Scrapyard -10/Materials -10/Subcaves -7/Scraptown (discovered 1 exit: [*Fac]) History --------- Turn | Location | Event 6 | -11/Scrapyard | Discovered new exit (range 0) 6 | -11/Scrapyard | Entered Materials 100 | -10/Materials | Discovered new exit (range 6) 118 | -10/Materials | Entered Subcaves 119 | -10/Subcaves | Approached by a straggling Scientist 321 | -10/Subcaves | Build established: Mutant 361 | -10/Subcaves | Scientist uncovered a shortcut to Scraptown 377 | -10/Subcaves | Learned 8 Materials zone layouts 648 | -10/Subcaves | Entered Scraptown 953 | -7/Scraptown | Visited UFD Registry 956 | -7/Scraptown | Registered with UFD as "Deathkit" 973 | -7/Scraptown | Build established: Derelict-Mutant 989 | -7/Scraptown | Visited Cyclists 1017 | -7/Scraptown | Entered Cyclist Reading Room 1044 | -7/Scraptown | Visited Shadow of the Wyrm 1126 | -7/Scraptown | Heard Great Nut preacher, LISTEN AND RECITE! 1146 | -7/Scraptown | Scanned Subdweller tech in exchange for log data 1149 | -7/Scraptown | Learned location of Quarantine (-3) 1151 | -7/Scraptown | Learned Factory emergency access door positions 1153 | -7/Scraptown | Learned location of Warlord (-5) 1154 | -7/Scraptown | Learned 12 Research zone layouts 1254 | -7/Scraptown | Discovered new exit (range 13) 1634 | -7/Scraptown | Visited Awakened 1657 | -7/Scraptown | Visited CPS Storage 1690 | -7/Scraptown | Visited TADAMA 1710 | -7/Scraptown | Visited Red Mages 1911 | -7/Scraptown | Visited Junk Cannon Lab 2003 | -7/Scraptown | Visited Abandonware Association 2023 | -7/Scraptown | Learned abandonware demo "REVENGE.EXE" 2023 | -7/Scraptown | Learned abandonware demo "ERRANTS.EXE" 2139 | -7/Scraptown | Visited Modified Component R&D 2216 | -7/Scraptown | Visited Scrapoid Pod Storage 2225 | -7/Scraptown | Found Scrapoid Pod 2512 | -7/Scraptown | Build established: Mutant 2890 | -7/Scraptown | Visited Chapter 10 2943 | -7/Scraptown | Visited Curators Association 2966 | -7/Scraptown | Visited DA-N13 Charitable Foundation 2981 | -7/Scraptown | Found DCF Scrap (29 items) 3168 | -7/Scraptown | Delivered Scrap Shield to a Scientist 3311 | -7/Scraptown | Visited Scrapoid Research Area 3363 | -7/Scraptown | Visited Scrap Suit Storage 3448 | -7/Scraptown | Attacked by Scraptown defenders 3451 | -7/Scraptown | Self-destructed Last Messages --------------- not limited to compatible fragments for repairs! Anyway, if you do find one, let me know. V9-S3N(c): A Scrap Shield! Thank you so much! I'll repay you with a sample of my new tech, promise. 03184_ Searching scrap... 03184_ Found Coolant Injector. 03184_ Found 59 Matter. 03185_ Acquired 59 matter. 03194_ 8E-U2D(c): "Come one, come all! See for yourself a fine selection of the many wondrous pieces in our collection!" 03222_ Multiple signs read "I'm always busy, go away." 03230_ X4-QUF(p): "Why am I always assigned to the buggy backup mainframe? DevOps prejudice!" 03311_ LOCAL NARROWCAST: Scrapoid Research Area. 03363_ LOCAL NARROWCAST: Scrap Suit Storage. 03412_ Acquired Mining Claw. 03447_ Sneak attack on 07S01-D. 03447_ 07S01-D destroyed. 03448_ ANNOUNCEMENT: Intruder alert! Defend Scraptown! 03450_ Acquired 70 matter. Map ----- +----------------------------------------------------+ | ?# ## #" #????????????????????? | | ?###### ##### ## ###########????????????????????? | | ####### ##### ## ##?????????????????????????????? | | """"""" """"" "" "########??????????????????????? | | "##"""""#??????????????????????? | | "## "#??????????????????????? | | "## "#??????????????????????? | | "## = "#??????????????????????? | | !! "#??????????????????????? | | """"""""""""" "## = "#??????????????????????? | | """"""""""""" "## "#??????????????????????? | | ###########"" "##"""" #??????????????????????? | | ??????????#"" "##########????????????????????? | | ??????????#"" "## #"""""#????????????????????? | | ??????????#"" "## !! !!#????????????????????? | | ????????###"" "## ##"#?????????????????? | | ???###### #"" "## X" #?????????????????? | | ?? #?????????????????? | | ?? "## #?????????????????? | | ??????### #"" "## ! !! !#?????????????????? | | ??????????#"" "## #"""""#""#?????????????????? | | ??????????#"" "##############????????????????? | | ??????????#"" "## """ "#????????????????? | | ??????????#"" "## """"" ""#????????????????? | | ###########"" "## """ "#????????????????? | | """"""""""""" "## !@= ""#????????????????? | | """"""""""""" ! "#????????????????? | | "## s #????????????????? | | "## """ #????????????????? | | "## " """"" #????????????????? | | ## """ """ #????????????????? | | #############????????????????? | | """"""""" """""" ##????????????????????????????? | | ######### ###### #?????????????????????????????? | | ?????# !=!*## #?????????????????????????????? | | ""???# ==*!]*=## #?????????????????????????????? | | "!#??#! ]! []]## #?????????????????????????????? | | ""#??# !*|! =## #?????????????????????????????? | | "#?#=[[##[=!## #?????????????????????????????? | | ""##?# ##*=*## ############??????????????????? | | "/#??########### #??????????????????? | | ""#????????????# ##??????????????????? | | "????????????# #??????????????????? | | #??????????????# #??????????????????? | | #??????????????# #??????????????????? | | #??????????????# ############??????????????????? | | ######?######### #####?????????????????????????? | | ##"""##"""##"|"# """"#?????????????????????????? | | ##"""##""|##" # "" "#?????????????????????????? | | "#?????????????????????????? | +----------------------------------------------------+ Best States ------------- Heat Dissipation 25 Energy Generation 10 Energy Capacity 125 Matter Stores 300 Matter Capacity 300 Sight Range 16 Terrain Scan Density 10 ECM Strength 2 Evasion (%) 40 Recoil Reduction 2 Item Schematics ----------------- None Robot Schematics ------------------ None Fabricated ------------ Nothing Repaired ---------- Nothing Alien Tech Used ----------------- None Achievements -------------- None Challenges ------------ None Game ------ Seed DirtyBarrageSubcomponent Manual? 0 Play Time 00:14:39 Cumulative 487.0 hours Start 2025.05.26 @ 02:37:05 End 2025.05.26 @ 02:52:08 Sessions 1 Manual Loads 0 Difficulty Rogue Special Mode None Game No. 537 Rogue 537 Adventurer 0 Explorer 0 Win Type - Total 14 Types 9/0/4/1/0/0/0/0/0/0 Lore% 69 Gallery% 79 Achievement% 82 Wizard Run 0 Options --------- Layout 0 ASCII 0 Keyboard 0 Movement Numpad Keybinds 0 Fullscreen 1 Font 18/SmallcapsGlow Map View 76x50 Zoom Use 0% Tactical HUD 1 Map Filters NONE Filters NONE Steam 1 RUN: cb552f84-9aca-49c2-a913-99f6caed10fa